bitfinex/quotes_ETHUSD_20250411
["timestamp","ask_amount","ask_price","bid_price","bid_amount"]
[1744337038766,8.069,1535.3,1535.2,0.13025939]
[1744337038934,8.069,1535.3,1535.0,6.51459]
[1744337039139,14.58258,1535.3,1535.1,0.13025939]
[1744337039336,8.069,1535.3,1535.0,6.51461]
[1744337039582,8.069,1535.3,1535.1,6.64426939]
[1744337039796,8.069,1535.3,1535.1,13.15827939]
[1744337040086,8.069,1535.3,1535.1,0.13025939]
[1744337040389,14.5824,1535.3,1535.1,0.13025939]
[1744337041390,8.069,1535.3,1535.1,6.64437939]
[1744337041588,14.58245,1535.3,1535.1,0.13025939]
[1744337041805,0.55,1535.2,1535.1,0.13025939]
[1744337041958,6.51442,1535.1,1534.8,7.4047]
[1744337042155,13.02887,1535.1,1534.9,0.12867689]
[1744337042477,6.51465,1535.0,1534.9,0.12867689]
[1744337042672,6.51386,1535.2,1534.9,0.12867689]
[1744337042876,13.02789,1535.2,1534.8,6.51544]
[1744337043094,6.51423,1535.1,1535.0,0.1309466]
[1744337043584,6.51541,1534.9,1534.5,6.51642]
[1744337043790,6.51576,1534.8,1534.4,7.4544]
[1744337044101,7.317081,1534.9,1534.5,6.51662]
[1744337044388,7.317081,1534.9,1534.6,6.51614]
[1744337044685,8.069,1535.0,1534.7,6.51558]
[1744337044888,9.024,1535.2,1534.9,6.5148]
[1744337045076,8.07,1535.2,1534.9,6.5148]
[1744337045282,16.51367783,1535.2,1534.9,6.5148]
[1744337045483,9.99984783,1535.2,1534.7,7.45314]
[1744337045657,6.51437,1535.1,1534.8,6.51534]
[1744337046054,10.54984783,1535.2,1534.7,0.9374]
[1744337046259,7.46904,1535.0,1534.6,6.51634]
[1744337046496,13.98409,1535.0,1534.6,6.51634]
[1744337046691,6.51512,1534.9,1534.5,13.97029]
[1744337047003,6.51557,1534.8,1534.5,0.9374]
[1744337047177,6.51652,1534.6,1534.3,7.45499]
[1744337047502,6.51521,1534.9,1534.3,7.45499]
[1744337047503,13.98353,1535.0,1534.3,5.288899]
[1744337047659,13.9836,1535.0,1534.6,6.51619]
[1744337047856,6.51516,1534.9,1534.5,6.5167]
[1744337048111,6.51568,1534.8,1534.4,6.51715]
[1744337048699,14.58568,1534.8,1534.4,6.51708]
[1744337048894,23.266513,1534.8,1534.4,6.51708]
[1744337049198,8.01995,1534.7,1534.2,13.03589]
[1744337049404,8.01999,1534.7,1534.1,1.0374]
[1744337049601,8.01999,1534.7,1534.3,13.03492]
[1744337049763,10.4970513,1534.7,1534.4,6.51709]
[1744337049965,3.4310613,1534.7,1534.5,6.51657]
[1744337050269,2.4770613,1534.7,1534.6,6.64404956]
[1744337050484,8.07,1534.8,1534.6,6.64404956]
[1744337050485,8.07,1534.8,1534.6,13.16023956]
[1744337050830,8.07,1534.8,1534.6,6.64388956]
[1744337051110,8.07,1534.8,1534.6,13.16003956]
[1744337051272,8.07,1534.8,1534.6,6.64384956]
[1744337051471,8.07,1534.8,1534.6,0.12769956]
[1744337051683,8.9724,1534.8,1534.6,0.12769956]
[1744337052082,8.9724,1534.8,1534.6,6.64397956]
[1744337052694,0.55,1534.7,1534.6,0.12769956]
[1744337054181,0.55,1534.7,1534.1,0.1]
[1744337054182,0.55,1534.5,1534.1,0.1]
[1744337054380,0.55,1534.3,1534.1,0.1]
[1744337054602,0.55,1534.3,1534.1,6.61846]
[1744337055000,0.55,1534.3,1534.1,0.1]
[1744337055001,8.07775,1534.2,1534.1,0.1]
[1744337055402,5.12671482,1534.6,1534.1,0.1]
[1744337055583,5.12671482,1534.6,1534.3,6.51736]
[1744337055923,0.55,1534.5,1534.3,13.03507]
[1744337056227,8.071,1534.7,1534.5,6.51647]
[1744337056376,1.0097,1535.0,1534.5,6.51647]
[1744337056580,1.0097,1535.0,1534.7,13.03138]
[1744337057283,7.5245,1535.0,1534.5,6.51664]
[1744337057608,14.33312,1534.9,1534.5,6.51664]
[1744337057816,7.06596,1534.7,1534.4,6.51713]
[1744337058017,7.06596,1534.7,1534.3,6.51747]
[1744337058214,7.06596,1534.7,1534.3,6.51745]
[1744337058376,7.26761,1534.9,1534.6,6.5162]
[1744337058582,0.726761,1534.8,1534.6,6.5162]
[1744337059118,0.75245,1534.9,1534.6,6.51615]
[1744337059274,0.75245,1534.9,1534.7,6.51577]
[1744337059479,1.0097,1535.0,1534.7,6.51577]
[1744337059680,7.52459,1535.0,1534.6,13.03233]
[1744337060021,7.52459,1535.0,1534.6,13.03235]
[1744337060220,7.52459,1535.0,1534.6,6.51615]
[1744337060380,7.267749,1534.9,1534.5,13.97574]
[1744337060876,7.267749,1534.9,1534.6,6.51633]
[1744337061274,13.783119,1534.9,1534.5,7.45897]
[1744337061475,7.267749,1534.9,1534.6,6.51631]
[1744337061874,6.51601,1534.7,1534.4,6.51713]
[1744337062092,15.234611,1534.7,1534.4,6.51713]
[1744337063691,6.51645,1534.6,1534.3,7.45978]
[1744337063936,0.55,1534.5,1534.2,19.09588]
[1744337064103,0.55,1534.5,1534.3,6.51754]
[1744337064308,16.184861,1534.7,1534.3,6.51741]
[1744337064511,1.6184861,1534.6,1534.4,6.51718]
[1744337066033,7.06554,1534.8,1534.3,6.51763]
[1744337066034,0.55,1534.8,1534.3,6.51763]
[1744337066338,14.58274,1534.8,1534.5,6.51669]
[1744337068426,8.067,1534.8,1534.6,6.51594]
[1744337068609,9.0287,1535.1,1534.6,6.51635]
[1744337068810,9.0287,1535.1,1534.8,13.03059]
[1744337069131,15.54303,1535.1,1534.8,6.51527]
[1744337069310,15.54303,1535.1,1534.7,13.03159]
[1744337069512,15.54303,1535.1,1534.7,13.03151]
[1744337069737,18.103718,1535.1,1534.7,13.03151]
[1744337069960,6.51524,1534.9,1534.6,6.51631]
[1744337070148,7.06502,1535.0,1534.6,13.03252]
[1744337070464,0.55,1535.0,1534.7,6.51592]
[1744337070769,18.103668,1535.1,1534.8,6.51549]
[1744337070930,1.8103668,1535.0,1534.8,6.51549]
[1744337071262,1.8103668,1535.0,1534.7,6.51592]
[1744337071431,11.589388,1535.1,1534.8,6.51523]
[1744337072320,0.55,1535.0,1534.6,13.03249]
[1744337072527,0.55,1535.0,1534.7,6.51585]
[1744337072756,7.0648,1535.0,1534.6,6.5162]
[1744337073055,0.70648,1534.9,1534.6,13.03236]
[1744337073221,0.70648,1534.9,1534.7,6.51574]
[1744337073426,0.70648,1534.9,1534.7,13.0315]
[1744337073620,0.55,1535.0,1534.7,13.0315]
[1744337074049,7.06467,1535.0,1534.6,6.51627]
[1744337074248,6.51467,1535.0,1534.7,6.51584]
[1744337075062,6.51467,1535.0,1534.6,13.03238]
[1744337075363,7.47733,1534.8,1534.4,6.51711]
[1744337075557,0.747733,1534.7,1534.4,6.51711]
[1744337075758,7.263663,1534.7,1534.3,7.452]
[1744337076065,6.51651,1534.6,1534.3,13.96947]
[1744337076268,6.51651,1534.6,1534.3,7.45187]
[1744337076767,6.51651,1534.6,1534.3,13.96931]
[1744337076928,7.47452976,1534.6,1534.3,7.45184]
[1744337077677,7.47452976,1534.6,1534.3,0.9344]
[1744337077839,0.95801976,1534.6,1534.1,0.1]
[1744337078041,7.47457976,1534.6,1534.2,13.03572]
[1744337078473,13.99116976,1534.6,1534.2,13.03572]
[1744337078775,1.39911698,1534.5,1534.2,13.03572]
[1744337078950,13.99116976,1534.6,1534.2,13.03572]
[1744337079441,15.879783,1534.7,1534.3,13.03487]
[1744337079775,15.879783,1534.7,1534.4,6.51719]
[1744337081072,9.363733,1534.7,1534.4,13.0342]
[1744337081252,8.066,1534.7,1534.4,13.0342]
[1744337081438,8.066,1534.7,1534.5,6.51677]
[1744337081975,8.066,1534.7,1534.5,6.51664]
[1744337082380,8.066,1534.7,1534.6,6.51635]
[1744337083644,18.13173,1535.0,1534.6,13.0327]
[1744337083846,20.693424,1535.0,1534.6,13.0327]
[1744337084054,27.208324,1535.0,1534.6,13.0327]
[1744337084358,27.208324,1535.0,1534.6,6.51635]
[1744337085790,6.51509,1534.9,1534.6,6.51635]
[1744337085995,6.51566,1534.8,1534.5,6.51672]
[1744337086150,14.334485,1534.8,1534.4,13.03428]
[1744337086353,14.334485,1534.8,1534.3,6.9944]
[1744337086354,7.06599,1534.7,1534.3,6.9944]
[1744337086551,13.03324,1534.6,1534.3,6.06]
[1744337087087,13.03324,1534.6,1534.2,6.51785]
[1744337087975,6.51648,1534.6,1534.2,13.03572]
[1744337088291,8.067,1534.6,1534.3,6.51747]
[1744337088492,9.5803,1534.6,1534.1,7.62043]
[1744337088692,16.09686,1534.6,1534.1,7.62043]
[1744337089189,22.61352,1534.6,1534.1,7.62043]
[1744337089391,6.51685,1534.5,1534.1,7.62043]
[1744337089889,16.09686,1534.6,1534.2,6.51804]
[1744337090286,6.51684,1534.5,1534.1,14.13868]
[1744337091486,22.61342,1534.6,1534.2,6.51792]
[1744337091702,6.51678,1534.5,1534.2,6.51792]
[1744337091861,6.51678,1534.5,1534.1,7.62038]
[1744337092055,6.51678,1534.5,1534.1,7.6203]
[1744337092256,6.51726,1534.4,1534.1,7.6203]
[1744337093007,8.067,1534.6,1534.4,6.51695]
[1744337093156,2.273975,1534.8,1534.4,6.51695]
[1744337093157,0.9709,1535.0,1534.6,6.51632]
[1744337093363,6.51533,1534.9,1534.5,1.002]
[1744337093593,6.51606,1534.7,1534.3,17.03685]
[1744337093896,6.51603,1534.7,1534.3,18.740555]
[1744337094259,6.51565,1534.8,1534.4,6.51717]
[1744337095184,13.03138,1534.8,1534.4,6.51717]
[1744337095798,6.51594,1534.7,1534.4,6.51717]
[1744337096594,13.03151,1534.8,1534.4,13.03416]
[1744337096803,14.334661,1534.8,1534.4,6.51699]
[1744337098099,14.334661,1534.8,1534.3,7.51954]
[1744337098100,6.51611,1534.7,1534.3,7.51954]
[1744337098262,6.51611,1534.7,1534.3,14.03701]
[1744337098578,6.51611,1534.7,1534.4,6.51718]
[1744337098985,14.334451,1534.8,1534.4,6.51718]
[1744337099200,7.818701,1534.8,1534.4,6.51703]
[1744337099407,0.55,1534.9,1534.6,6.51614]
[1744337099772,7.0651,1534.9,1534.6,6.51614]
[1744337100629,0.55,1534.9,1534.6,6.51614]
[1744337101296,7.06508,1534.9,1534.6,6.51614]
[1744337101616,8.520158,1534.9,1534.6,6.51614]
[1744337102118,12.427158,1534.9,1534.6,6.51614]
[1744337102414,13.03176,1534.8,1534.4,6.517]
[1744337103115,6.51598,1534.7,1534.4,6.517]
[1744337103587,6.51583,1534.8,1534.4,13.03406]
[1744337103792,14.5351558,1534.8,1534.4,6.517]
[1744337103988,8.0193258,1534.8,1534.4,13.03405]
[1744337104306,14.5350658,1534.8,1534.4,6.517]
[1744337104679,14.5350658,1534.8,1534.4,13.034]
[1744337105011,8.0193258,1534.8,1534.4,13.034]
[1744337105519,14.5350458,1534.8,1534.4,13.034]
[1744337106117,7.96946458,1534.7,1534.4,13.034]
[1744337106415,1.45350458,1534.7,1534.4,6.517]
[1744337106621,1.45350458,1534.7,1534.4,13.03407]
[1744337106821,1.45350458,1534.7,1534.4,6.517]
[1744337107444,7.96945458,1534.7,1534.4,6.517]
[1744337107641,7.96945458,1534.7,1534.4,13.03403]
[1744337107822,14.57372,1534.8,1534.5,6.5167]
[1744337108014,14.57372,1534.8,1534.5,13.0334]
[1744337108549,8.058,1534.8,1534.6,6.51631]
[1744337108733,14.57379,1534.8,1534.4,6.51716]
[1744337108935,7.973479,1534.7,1534.4,6.51716]
[1744337109233,6.51683,1534.5,1534.3,1.002]
[1744337109436,0.55,1534.6,1534.3,7.51927]
[1744337109745,7.06635,1534.6,1534.3,7.51927]
[1744337110243,7.06635,1534.6,1534.3,1.002]
[1744337110452,8.6681629,1534.6,1534.3,1.002]
[1744337110650,8.04645,1534.2,1534.1,0.1]
[1744337110852,22.94090242,1534.2,1534.1,0.1]
[1744337111151,19.03390242,1534.2,1534.1,0.1]
[1744337111349,22.08293117,1534.2,1534.1,0.1]
[1744337111517,19.15347875,1534.2,1534.1,0.1]
[1744337111718,18.65962124,1534.2,1534.1,0.1]
[1744337112342,21.58907366,1534.2,1534.1,0.1]
[1744337112843,20.61067366,1534.2,1534.1,0.1]
[1744337113023,21.44367366,1534.2,1534.1,0.1]
[1744337113524,7.35402,1533.6,1533.4,0.395092]
[1744337113729,14.5792,1533.7,1533.4,0.395092]
[1744337115251,0.55,1533.6,1533.4,0.395092]
[1744337115553,7.0706,1533.6,1533.4,0.395092]
[1744337116553,6.52069,1533.6,1533.4,0.395092]
[1744337116752,8.059,1533.7,1533.4,1.310492]
[1744337116950,8.059,1533.7,1533.5,6.52077]
[1744337117159,0.55,1533.8,1533.5,13.04162]
[1744337117446,0.55,1533.8,1533.5,6.52077]
[1744337118054,0.55,1533.8,1533.6,6.5206]
[1744337118356,0.55,1533.8,1533.5,6.52077]
[1744337118858,0.55,1533.8,1533.5,13.04162]
[1744337119238,0.55,1533.8,1533.6,0.12354519]
[1744337119454,1.512933,1533.8,1533.6,0.12354519]
[1744337119653,1.383,1533.7,1533.6,0.12354519]
[1744337119950,1.383,1533.7,1533.4,6.916532]
[1744337119951,7.90317,1533.7,1533.4,0.395092]
[1744337120324,14.42362,1533.7,1533.4,0.395092]
[1744337120518,7.90317,1533.7,1533.4,0.395092]
[1744337120725,0.55,1533.5,1533.4,0.395092]
[1744337120926,7.07103,1533.5,1533.4,0.395092]
[1744337122158,0.55,1533.5,1533.4,0.395092]
[1744337123757,15.12003,1533.5,1533.4,0.395092]
[1744337125433,8.599,1533.5,1533.4,0.395092]
[1744337125635,10.1900137,1533.5,1533.4,0.395092]
[1744337125834,8.049,1533.5,1533.4,0.395092]
[1744337126337,6.52001,1533.8,1533.4,6.916362]
[1744337126536,6.52001,1533.8,1533.5,6.521]
[1744337126738,13.03998,1533.8,1533.4,6.916362]
[1744337127360,6.51997,1533.8,1533.4,13.437622]
[1744337127526,8.767208,1533.8,1533.4,13.437622]
[1744337127855,8.767208,1533.8,1533.4,6.916352]
[1744337128058,8.767208,1533.8,1533.4,13.437602]
[1744337128260,6.51997,1533.8,1533.5,6.52096]
[1744337128472,0.55,1533.8,1533.5,13.0418]
[1744337128661,15.40241,1533.9,1533.6,6.5206]
[1744337128826,15.40241,1533.9,1533.5,7.43574]
[1744337128827,8.05,1533.9,1533.5,3.84435242]
[1744337129030,8.05,1533.9,1533.7,6.52001]
[1744337129230,15.37452,1533.9,1533.5,7.43571]
[1744337129432,0.55,1533.8,1533.4,6.916492]
[1744337129663,6.52038,1533.7,1533.4,0.395092]
[1744337130245,7.06982,1533.8,1533.4,6.916332]
[1744337130568,0.55,1533.8,1533.4,6.916542]
[1744337130774,1.4905,1533.8,1533.5,6.52099]
[1744337130995,8.05,1533.9,1533.7,0.9149]
[1744337131139,14.56952,1533.9,1533.5,13.04194]
[1744337131339,8.05,1533.9,1533.6,6.52042]
[1744337131838,8.05,1533.9,1533.7,0.41681412]
[1744337132045,8.05,1533.9,1533.6,6.52042]
[1744337132273,8.05,1533.9,1533.6,13.04085]
[1744337132449,8.05,1533.9,1533.7,0.41873845]
[1744337132650,8.05,1533.9,1533.6,6.52042]
[1744337132851,14.56936,1533.9,1533.7,0.41873845]
[1744337133053,14.56936,1533.9,1533.6,6.52042]
[1744337133366,14.56936,1533.9,1533.7,0.41873845]
[1744337133570,14.56936,1533.9,1533.7,6.93884845]
[1744337133571,8.05,1533.9,1533.7,6.93884845]
[1744337133776,8.05,1533.9,1533.7,0.41873845]
[1744337133978,8.05,1533.9,1533.6,6.52052]
[1744337134157,8.05,1533.9,1533.8,0.41873845]
[1744337134356,8.05,1533.9,1533.6,6.52052]
[1744337134687,24.221139,1533.9,1533.4,0.395092]
[1744337134987,19.764199,1533.9,1533.4,6.916122]
[1744337135197,16.764199,1533.9,1533.5,7.43567]
[1744337135373,16.764199,1533.9,1533.5,13.95654]
[1744337135577,6.52059,1533.7,1533.4,0.395092]
[1744337135753,6.52059,1533.7,1533.4,6.916412]
[1744337135955,6.52059,1533.7,1533.5,0.41818862]
[1744337136362,9.6063099,1533.8,1533.5,0.41818862]
[1744337136864,6.52026,1533.7,1533.5,0.41818862]
[1744337137080,3.0865199,1533.8,1533.5,0.41818862]
[1744337137265,3.0865199,1533.8,1533.4,0.395092]
[1744337137266,9.0562799,1533.8,1533.4,7.831422]
[1744337137474,14.56941,1533.9,1533.5,6.93985591]
[1744337137654,14.56941,1533.9,1533.6,6.5206]
[1744337137857,6.51993,1533.8,1533.7,0.41915085]
[1744337138164,13.59007,1533.8,1533.4,6.916382]
[1744337138365,15.754077,1533.8,1533.7,0.41915085]
[1744337138600,15.754077,1533.8,1533.4,6.916382]
[1744337138797,9.233937,1533.8,1533.7,0.41915085]
[1744337138998,9.233937,1533.8,1533.4,13.437632]
[1744337139291,9.233937,1533.8,1533.5,7.43574]
[1744337139292,0.55,1533.8,1533.5,7.43574]
[1744337139596,21.08895,1533.9,1533.5,7.85494959]
[1744337139597,14.5694,1533.9,1533.5,7.85494959]
[1744337139766,1.4101,1533.7,1533.5,0.41921959]
[1744337139961,6.52031,1533.7,1533.5,0.41921959]
[1744337140161,7.06981,1533.8,1533.5,0.41921959]
[1744337140162,13.58982,1533.8,1533.5,0.41921959]
[1744337140490,6.51976,1533.8,1533.5,0.41921959]
[1744337140667,6.51976,1533.8,1533.5,6.94021959]
[1744337142463,8.05,1533.9,1533.6,13.04081]
[1744337142658,8.05,1533.9,1533.7,0.41791365]
[1744337142899,8.05,1533.9,1533.6,6.52035]
[1744337143101,8.05,1533.9,1533.8,0.41791365]
[1744337143301,23.888799,1533.9,1533.5,6.52097]
[1744337143460,6.51987,1533.8,1533.4,14.352712]
[1744337143664,16.819219,1533.9,1533.5,6.521]
[1744337143885,16.819219,1533.9,1533.6,6.52043]
[1744337144075,0.55,1533.8,1533.5,6.52088]
[1744337144275,7.06977,1533.8,1533.5,6.52088]
[1744337145304,9.4586689,1533.8,1533.5,6.52088]
[1744337146296,9.4586689,1533.8,1533.4,7.831432]
[1744337146604,15.9786589,1533.8,1533.4,7.831282]
[1744337147424,0.55,1533.6,1533.4,0.395092]
[1744337147714,0.8784,1533.7,1533.4,0.395092]
[1744337148010,0.8784,1533.7,1533.4,6.916332]
[1744337148209,0.55,1533.6,1533.4,0.395092]
[1744337148916,0.55,1533.7,1533.5,6.52101]
[1744337149416,0.55,1533.8,1533.6,6.52047]
[1744337149577,0.55,1533.8,1533.5,7.39399]
[1744337149907,0.55,1533.8,1533.5,13.91488]
[1744337150293,0.55,1533.8,1533.4,0.395092]
[1744337150294,6.52033,1533.7,1533.4,0.395092]
[1744337150497,6.52033,1533.7,1533.4,6.916452]
[1744337151017,9.321573,1533.8,1533.4,13.437762]
[1744337151505,9.321573,1533.8,1533.5,13.04184]
[1744337151506,0.55,1533.8,1533.5,13.04184]
[1744337151683,0.55,1533.8,1533.5,6.52084]
[1744337151883,7.06975,1533.8,1533.5,6.52084]
[1744337152914,0.55,1533.8,1533.6,6.52052]
[1744337153301,0.55,1533.8,1533.5,6.52084]
[1744337153692,0.55,1533.8,1533.5,13.04174]
[1744337154089,10.39696,1534.1,1533.7,6.52002]
[1744337154279,18.43196,1534.1,1533.7,6.52002]
[1744337154479,0.55,1534.0,1533.7,6.52002]
[1744337155080,0.55,1534.0,1533.8,0.39629942]
[1744337155620,7.06906,1534.0,1533.8,0.39629942]
[1744337155795,9.619162,1534.0,1533.8,0.39629942]
[1744337156317,0.8784,1534.1,1533.8,7.78895942]
[1744337156486,14.55393,1534.0,1533.8,0.39629942]
[1744337156688,21.07312,1534.0,1533.6,13.94014]
[1744337156881,14.55393,1534.0,1533.7,0.39629942]
[1744337157114,14.55393,1534.0,1533.7,6.52012]
[1744337157419,14.55393,1534.0,1533.8,0.39629942]
[1744337157641,8.035,1534.0,1533.8,0.39629942]
[1744337157785,8.035,1534.0,1533.8,13.43558942]
[1744337157982,7.78167191,1534.6,1534.0,6.5189]
[1744337158227,6.24407191,1534.6,1534.5,6.51678]
[1744337158388,6.24407191,1534.6,1534.4,10.34557242]
[1744337158389,6.24407191,1534.6,1534.4,0.8991]
[1744337158723,17.19692191,1534.6,1534.5,0.39629942]
[1744337158923,28.54678134,1534.6,1534.5,0.39629942]
[1744337159128,0.55,1534.1,1533.8,6.51972]
[1744337159419,0.55,1534.1,1533.8,13.0393]
[1744337159581,15.43838,1534.2,1533.9,6.88256446]
[1744337159582,8.9201,1534.2,1533.9,6.88256446]
[1744337159790,9.577774,1534.2,1534.0,6.51887]
[1744337160192,3.8861,1534.4,1534.1,6.51847]
[1744337160396,6.51785,1534.3,1534.1,0.36327446]
[1744337160634,7.06805,1534.2,1534.1,0.36327446]
[1744337160799,7.40466,1534.1,1533.8,6.5195]
[1744337160994,0.55,1534.0,1533.8,6.5195]
[1744337161200,0.55,1534.0,1533.8,13.03906]
[1744337161401,6.51769,1534.3,1533.9,7.41838]
[1744337161637,9.068192,1534.3,1533.9,7.41838]
[1744337162038,15.586082,1534.3,1533.9,7.41825]
[1744337162199,9.068192,1534.3,1533.9,7.41825]
[1744337162535,2.550502,1534.3,1534.0,6.51867]
[1744337162833,11.034,1534.4,1534.1,13.03656]
[1744337163033,8.034,1534.4,1534.2,6.518]
[1744337163197,10.71831943,1534.6,1534.2,7.35978]
[1744337163398,3.55,1534.5,1534.3,6.51757]
[1744337163595,3.55,1534.5,1534.2,7.35978]
[1744337163905,11.49370194,1534.5,1534.2,7.35978]
[1744337164106,7.40246,1534.6,1534.2,13.87762]
[1744337164301,14.55,1534.7,1534.4,6.51709]
[1744337164905,8.034,1534.7,1534.4,13.0341]
[1744337165208,6.51709,1534.5,1534.2,0.8419]
[1744337165427,6.51709,1534.5,1534.2,7.35981]
[1744337165613,7.223799,1534.5,1534.2,7.35981]
[1744337166129,7.06722,1534.4,1534.0,6.06]
[1744337166326,0.55,1534.2,1533.5,2.92945242]
[1744337166527,13.5884,1534.0,1533.6,7.36226]
[1744337166727,7.87819,1533.9,1533.6,1.19790662]
[1744337167124,0.55,1533.8,1533.6,1.19790662]
[1744337167531,0.55,1533.8,1533.6,0.35600662]
[1744337167722,7.07017,1533.7,1533.6,0.35600662]
[1744337167939,0.55,1533.6,1533.4,1.236992]
[1744337168324,1.257017,1533.6,1533.4,1.236992]
[1744337168568,7.777817,1533.6,1533.4,0.395092]
[1744337169343,10.39421,1533.8,1533.4,0.395092]
[1744337169645,0.8744,1533.8,1533.4,6.916362]
[1744337169867,0.55,1533.7,1533.4,6.916362]
[1744337170152,7.07024,1533.7,1533.5,0.36060021]
[1744337170326,8.516713,1533.7,1533.5,0.36060021]
[1744337171027,7.0706,1533.6,1533.5,0.36060021]
[1744337171426,7.966713,1533.7,1533.5,0.36060021]
[1744337171627,0.55,1533.6,1533.5,0.36060021]
[1744337172358,14.487173,1533.7,1533.5,0.36060021]
[1744337172359,0.55,1533.7,1533.5,0.36060021]
[1744337172559,7.91965,1533.7,1533.5,0.36060021]
[1744337172766,7.0706,1533.6,1533.5,0.36060021]
[1744337172945,7.0706,1533.6,1533.4,0.395092]
[1744337173143,7.0706,1533.6,1533.5,0.36348022]
[1744337175029,7.9736,1533.6,1533.5,0.36348022]
[1744337175234,7.9736,1533.6,1533.4,0.395092]
[1744337175235,6.52103,1533.5,1533.4,0.395092]
[1744337175565,14.55503,1533.5,1533.4,0.395092]
[1744337177063,15.10503,1533.5,1533.4,0.395092]
[1744337177562,8.584,1533.5,1533.4,0.395092]
[1744337177771,8.034,1533.5,1533.4,0.395092]
[1744337179577,8.034,1533.5,1533.4,6.916542]
[1744337179925,8.018,1533.8,1533.5,0.897]
[1744337180367,8.018,1533.8,1533.6,6.52042]
[1744337181649,4.86624995,1533.9,1533.8,7.41675]
[1744337181965,4.86624995,1533.9,1533.8,10.34620242]
[1744337183256,4.86624995,1533.9,1533.8,19.40620242]
[1744337183469,4.86624995,1533.9,1533.8,20.71188474]
[1744337183757,4.86624995,1533.9,1533.8,17.78243232]
[1744337184665,4.86624995,1533.9,1533.8,14.78243232]
[1744337184841,4.86624995,1533.9,1533.8,13.47675]
[1744337185167,0.903,1534.2,1533.9,6.51932]
[1744337185362,7.42028,1534.4,1534.0,6.5185]
[1744337185536,17.41231477,1534.6,1534.2,6.51788]
[1744337185726,14.02699143,1534.6,1534.2,6.5179]
[1744337185922,14.02699143,1534.6,1534.3,6.87589744]
[1744337186127,7.51048143,1534.6,1534.3,6.87589744]
[1744337187169,0.55,1534.5,1534.3,0.35833744]
[1744337187372,7.0672,1534.4,1534.3,0.35833744]
[1744337187571,17.998226,1534.4,1534.0,6.06]
[1744337187773,6.51834,1534.2,1533.8,6.51966]
[1744337187976,6.51834,1534.2,1533.8,13.03919]
[1744337188175,22.5046,1534.3,1533.9,6.5191]
[1744337188382,15.98668,1534.3,1533.9,13.03825]
[1744337188677,1.598668,1534.2,1534.0,6.51873]
[1744337188972,15.98682,1534.3,1533.9,7.40947]
[1744337189141,15.98682,1534.3,1533.9,13.92857]
[1744337189568,15.98677,1534.3,1534.0,6.51884]
[1744337190590,8.017,1534.3,1534.1,6.51845]
[1744337191100,4.413416,1534.4,1534.1,6.51845]
[1744337191283,4.413416,1534.4,1534.1,13.03674]
[1744337191442,16.27360148,1534.6,1534.3,6.51762]
[1744337191642,22.79029148,1534.6,1534.2,6.51786]
[1744337191843,13.03396,1534.5,1534.1,6.51827]
[1744337192251,6.51738,1534.4,1534.0,13.03746]
[1744337192454,15.240259,1534.4,1534.0,6.5187]
[1744337192658,2.205419,1534.4,1534.1,6.51846]
[1744337192880,1.303419,1534.4,1534.2,6.51804]
[1744337193184,9.75723148,1534.6,1534.3,6.51724]
[1744337193369,9.75723148,1534.6,1534.4,6.51719]
[1744337193983,7.06693,1534.5,1534.2,7.40807]
[1744337194185,16.27395148,1534.6,1534.2,7.40807]
[1744337194476,1.62739515,1534.5,1534.2,7.40807]
[1744337195082,7.06736,1534.4,1534.0,7.40908]
[1744337195287,7.06736,1534.4,1534.1,6.51844]
[1744337195497,0.55,1534.4,1534.1,13.03675]
[1744337195648,9.04621515,1534.5,1534.1,13.03675]
[1744337195848,0.90462152,1534.4,1534.1,13.03675]
[1744337196289,0.90462152,1534.4,1534.1,6.51831]
[1744337196586,0.90462152,1534.4,1534.1,13.0366]
[1744337196790,0.90462152,1534.4,1534.2,6.51794]
[1744337197561,2.52939515,1534.5,1534.2,6.51794]
[1744337197757,7.0674,1534.4,1534.0,13.92775]
[1744337197961,0.55,1534.4,1534.3,0.35470422]
[1744337198301,0.55,1534.4,1534.2,6.51805]
[1744337198456,1.50962352,1534.4,1534.2,6.51805]
[1744337198761,1.50962352,1534.4,1534.3,0.35470422]
[1744337199494,8.02682352,1534.4,1534.3,0.35470422]
[1744337199859,1.50962352,1534.4,1534.1,6.51831]
[1744337200161,1.50962352,1534.4,1534.1,6.51824]
[1744337200360,1.50962352,1534.4,1534.2,0.35470422]
[1744337200574,1.50962352,1534.4,1534.1,6.51824]
[1744337200770,8.02682352,1534.4,1534.3,0.35470422]
[1744337200971,8.02682352,1534.4,1534.1,6.51824]
[1744337201153,7.32045235,1534.3,1533.8,12.57944]
[1744337201380,0.902,1534.2,1533.9,6.51919]
[1744337201578,7.42007,1534.2,1533.9,6.51919]
[1744337202296,1.86162352,1534.4,1533.9,2.92945242]
[1744337202497,4.86162352,1534.4,1534.1,6.51819]
[1744337202799,11.37891352,1534.4,1534.1,6.51819]
[1744337203164,4.86162352,1534.4,1534.1,13.03652]
[1744337203400,3.95962352,1534.4,1534.2,6.51804]
[1744337203808,8.8462,1534.6,1534.3,6.51731]
[1744337204398,8.8462,1534.6,1534.3,13.03474]
[1744337204563,8.8462,1534.6,1534.4,6.51708]
[1744337205274,8.8462,1534.6,1534.3,13.03478]
[1744337205474,11.334034,1534.6,1534.3,13.03478]
[1744337206171,11.334034,1534.6,1534.4,6.51713]
[1744337206372,7.34579,1534.8,1534.5,6.51678]